Cogmind - Beta 11 X8 @@@ ROGUE MODE // 2021.11.23 @ 08:36:51 Player: Jelly Result: Destroyed by D-53 Grenadier with Mini Grenade Launcher Performance ------------- Evolutions (0) 0 Regions Visited (4) 800 Robots Destroyed (10) 50 Value Destroyed (187) 187 Prototype IDs (0) 0 Alien Tech Used (0) 0 Bonus (32) 32 TOTAL SCORE: 1069 Bonus ------- Follower Combat Kills 32 Cogmind --------- Core Integrity 0/250 Matter 79/300 Energy 100/100 System Corruption 0% Temperature Cool (0) Movement Walking (120) Location -9/Mines Parts ------- > --- POWER (1) -------- (None) > --- PROPULSION (2) --- Improved Aluminum Leg Improved Aluminum Leg > --- UTILITY (2) ------ Medium Storage Unit > --- WEAPON (2) ------- (None) > --- INVENTORY (10) --- Improved Ion Engine Light Nuclear Core Improved Aluminum Leg Improved Heat Sink Propulsion Shielding Autogun Autogun Grenade Launcher Mining Laser Peak State ------------ > --- POWER ------------ Improved Ion Engine > --- PROPULSION ------- Improved Aluminum Leg Improved Aluminum Leg > --- UTILITY ---------- Improved Heat Sink Medium Storage Unit > --- WEAPON ----------- Autogun Autogun > --- INVENTORY -------- Improved Ion Engine Light Nuclear Core Light Treads Improved Aluminum Leg Improved Aluminum Leg Propulsion Shielding Light Armor Plating Grenade Launcher Mining Laser [Rating: 15] Favorites ----------- Power Improved Ion Engine Engine Improved Ion Engine Propulsion Improved Aluminum Leg Treads Light Treads Leg Improved Aluminum Leg Wheel Compact Wheel Utility Medium Storage Unit Device Improved Heat Sink Storage Medium Storage Unit Protection Light Armor Plating Weapon Autogun Ballistic Gun Autogun Ballistic Cannon Light Cannon Launcher Grenade Launcher Special Weapon Mining Laser Build | -11 -10 -10 -10 -9 ------- Run | Scr Mat Min Exi Min Slots Evolved . | . . . . . Power . | . . . . . Propulsion . | . . . . . Utility . | . . . . . Weapon . | . . . . . Parts Attached 20 | . 15 2 . 3 Power 1 | . 1 . . . Engine 1 | . 1 . . . Core . | . . . . . Reactor . | . . . . . Propulsion 5 | . 4 . . 1 Treads 1 | . 1 . . . Leg 3 | . 2 . . 1 Wheel 1 | . 1 . . . Hover . | . . . . . Flight . | . . . . . Utility 3 | . 2 1 . . Device 1 | . 1 . . . Storage 1 | . 1 . . . Processor . | . . . . . Hackware . | . . . . . Protection 1 | . . 1 . . Artifact . | . . . . . Weapon 11 | . 8 1 . 2 Energy Gun . | . . . . . Energy Cannon . | . . . . . Ballistic Gun 6 | . 4 1 . 1 Ballistic Cannon 2 | . 2 . . . Launcher 2 | . 1 . . 1 Special Weapon 1 | . 1 . . . Impact Weapon . | . . . . . Slashing Weapon . | . . . . . Piercing Weapon . | . . . . . Special Melee Weapon . | . . . . . Unidentified Prototypes . | . . . . . Parts Lost 5 | . . . . 5 Power 1 | . . . . 1 Propulsion 1 | . . . . 1 Utility 1 | . . . . 1 Weapon 2 | . . . . 2 Highest Loss Streak 5 | . . . . 5 Average Slot Usage (%) 95 | . 91 100 100 81 Engine 13 | . 14 14 14 9 Leg 27 | . 24 28 28 28 Device 2 | . 6 2 . . Storage 14 | . 14 14 14 14 Protection 8 | . . 11 14 5 Ballistic Gun 22 | . 12 28 28 21 Ballistic Cannon 4 | . 13 . . . Naked Turns . | . . . . . Heaviest Build 26 | 11 24 26 26 26 Greatest Support 26 | 20 26 26 26 26 Greatest Overweight (x) 1 | . 1 . . . Average Overweight (x) . | . . . . . Largest Inventory Capacity 10 | . 10 10 10 10 Average Capacity 9 | . 9 10 10 10 Most Carried 10 | . 10 10 10 10 Average Carried 9 | . 8 10 10 9 Final Capacity 10 | 8 10 10 10 10 Final Carried 10 | 6 10 10 10 9 Class Distribution -------------------- 100% | Mutant Dominant Class ---------------- Mutant | -10/Materials Mutant | -10/Mines Mutant | -10/Exiles Mutant | -9/Mines Resources | -11 -10 -10 -10 -9 ----------- Run | Scr Mat Min Exi Min Matter Collected 512 | 200 78 188 . 46 Remotely . | . . . . . Salvage Created 320 | . 107 141 . 72 Parts 12 | . 3 9 . . Haulers Intercepted 1 | . 1 . . . Recyclers Shooed . | . . . . . Parts Field Recycled . | . . . . . Retrieved Matter . | . . . . . Parts Self-Destructed . | . . . . . Prevented . | . . . . . Kills | -11 -10 -10 -10 -9 ------- Run | Scr Mat Min Exi Min Combat Hostiles Destroyed 18 | . 2 6 . 10 Guns 11 | . 2 6 . 3 AOE 7 | . . . . 7 Classes Destroyed 5 | . 2 2 . 1 Tunneler 1 | . . 1 . . Hauler 1 | . 1 . . . Swarmer 5 | . . 5 . . Grunt 3 | . 2 1 . . Assembled 10 | . . . . 10 Best Kill Streak 10 | . 1 3 . 10 Combat Bots Only 10 | . 1 3 . 10 Max Kills in Single Turn 4 | . 1 1 . 4 Gunslinging . | . . . . . Exploded 4 | . . . . 4 Melee . | . . . . . Uniques/NPCs Destroyed . | . . . . . Combat | -11 -10 -10 -10 -9 -------- Run | Scr Mat Min Exi Min Damage Taken 1208 | . 257 184 . 767 Core 276 | . 57 44 . 175 Absorbed by Shields . | . . . . . Core Remaining (%) 100 | 100 . . . . Volleys Fired 56 | . 25 15 . 16 Largest 2 | . 2 2 . 2 Hottest 100 | . 100 46 . 46 Shots Fired 107 | . 48 30 . 29 Gun 96 | . 40 30 . 26 Cannon 6 | . 6 . . . Launcher 3 | . . . . 3 Special 2 | . 2 . . . Kinetic 102 | . 46 30 . 26 Thermal 2 | . 2 . . . Explosive 3 | . . . . 3 Electromagnetic . | . . . . . Robot Hit Streak 9 | . 9 4 . 5 Robot Miss Streak 3 | . 2 2 . 3 Penetration Max . | . . . . . Secondary Targets 1 | . . . . 1 Max Gunslinging Chain 1 | . . . . 1 Shots Hit Robots 58 | . 30 14 . 14 Core Hits 31 | . 7 8 . 16 Critical Kills 1 | . . . . 1 Critical Parts Destroyed . | . . . . . Critical Strikes 1 | . . . . 1 Destroy 1 | . . . . 1 Melee Attacks . | . . . . . Impact . | . . . . . Slashing . | . . . . . Piercing . | . . . . . Sneak Attacks . | . . . . . Combat Hostiles . | . . . . . Follow-up Attacks . | . . . . . Damage Inflicted 1071 | . 324 216 . 531 Guns 673 | . 273 216 . 184 Cannons 51 | . 51 . . . Explosions 347 | . . . . 347 Melee . | . . . . . Ramming . | . . . . . Kinetic 724 | . 324 216 . 184 Thermal . | . . . . . Explosive 347 | . . . . 347 Electromagnetic . | . . . . . Impact . | . . . . . Slashing . | . . . . . Piercing . | . . . . . Highest Corruption . | . . . . . Average Corruption . | . . . . . Corruption Purged . | . . . . . Overload Shots . | . . . . . Overflow Damage 41 | . . . . 41 Projectiles . | . . . . . Explosions 41 | . . . . 41 Melee . | . . . . . Knockbacks . | . . . . . Impact . | . . . . . Kinetic . | . . . . . Secondary . | . . . . . Self-Inflicted Damage 81 | . . . . 81 Shots 3 | . . . . 3 Rammed . | . . . . . Targets Rammed . | . . . . . Kicked . | . . . . . Crushed . | . . . . . Highest Temperature 109 | . 27 28 . 109 Average Temperature 24 | . 10 13 . 45 Received Heat Transfer 300 | . 162 18 . 120 Siege Activations . | . . . . . Robots Corrupted . | . . . . . Combat Hostiles . | . . . . . Parts Fried . | . . . . . Impact Corruptions . | . . . . . Robots Melted . | . . . . . Combat Hostiles . | . . . . . Parts Melted . | . . . . . Heat Transferred . | . . . . . Parts Sabotaged . | . . . . . Parts Stolen . | . . . . . Parts Stripped . | . . . . . Power Chain Reactions . | . . . . . Missiles Intercepted . | . . . . . Alert | -11 -10 -10 -10 -9 ------- Run | Scr Mat Min Exi Min Peak Influence 229 | . 108 229 . . Initial 5 | . . 5 . . Average 92 | . 72 138 . . Maximum Alert Level 1 | . . 1 . . Low Security (%) 93 | . 100 83 . 100 Level 1 6 | . . 16 . . Level 2 . | . . . . . Level 3 . | . . . . . Level 4 . | . . . . . Level 5 . | . . . . . High Security . | . . . . . Max Security . | . . . . . Squads Dispatched . | . . . . . Investigation . | . . . . . Extermination . | . . . . . Reinforcement . | . . . . . Assault . | . . . . . Garrison . | . . . . . Intercept . | . . . . . Construction Impeded . | . . . . . Haulers Reinforced . | . . . . . Active Scanning Responses . | . . . . . Cargo Convoy Interrupts . | . . . . . Stealth | -11 -10 -10 -10 -9 --------- Run | Scr Mat Min Exi Min Distress Signals 1 | . . . . 1 Communications Jammed . | . . . . . Distress Signals . | . . . . . Times Spotted 26 | . 4 9 . 13 Peak Tracking Total 7 | . 2 3 . 7 Tactical Retreats 2 | . 1 1 . . Traps | -11 -10 -10 -10 -9 ------- Run | Scr Mat Min Exi Min Traps Triggered . | . . . . . Indirectly . | . . . . . Trap Hack Attempts . | . . . . . Triggered . | . . . . . Disarmed . | . . . . . Reprogrammed . | . . . . . Reused . | . . . . . Traps Extracted . | . . . . . Installed . | . . . . . Triggered . | . . . . . Machines | -11 -10 -10 -10 -9 ---------- Run | Scr Mat Min Exi Min Machines Disabled . | . . . . . Max in Single Turn . | . . . . . Machines Sabotaged . | . . . . . Garrisons Compromised . | . . . . . Overloaded Fab Kills . | . . . . . Hacking | -11 -10 -10 -10 -9 --------- Run | Scr Mat Min Exi Min Machines Accessed 5 | . 1 . 4 . Terminals 1 | . 1 . . . Fabricators . | . . . . . Repair Stations . | . . . . . Recycling Units . | . . . . . Scanalyzers . | . . . . . Garrison Access . | . . . . . Total Hacks 11 | . 7 . 4 . Successful 9 | . 5 . 4 . Failed 2 | . 2 . . . Catastrophic . | . . . . . Database Lockouts . | . . . . . Manual 7 | . 7 . . . Terminals 7 | . 7 . . . Fabricators . | . . . . . Repair Stations . | . . . . . Recycling Units . | . . . . . Scanalyzers . | . . . . . Garrison Access . | . . . . . Terminal Hacks 9 | . 5 . 4 . Record 4 | . . . 4 . Terminal Index 1 | . 1 . . . Locate Traps 1 | . 1 . . . Transport Status 1 | . 1 . . . Hauler Manifests 1 | . 1 . . . Zone Layout 1 | . 1 . . . Fabricator Hacks . | . . . . . Repair Station Hacks . | . . . . . Recycling Unit Hacks . | . . . . . Scanalyzer . | . . . . . Garrison Access Hacks . | . . . . . Unauthorized Hacks . | . . . . . Terminals . | . . . . . Fabricators . | . . . . . Repair Stations . | . . . . . Recycling Units . | . . . . . Scanalyzers . | . . . . . Garrison Access . | . . . . . Data Cores Recovered . | . . . . . Used . | . . . . . Hacking Detections 1 | . 1 . . . Full Trace Events . | . . . . . Feedback Events . | . . . . . Feedback Blocked . | . . . . . Robot Schematics Acquired . | . . . . . Robots Built . | . . . . . Authchips . | . . . . . Time . | . . . . . Total Robot Build Rating . | . . . . . Part Schematics Acquired . | . . . . . Parts Built . | . . . . . Authchips . | . . . . . Time . | . . . . . Total Part Build Rating . | . . . . . Parts Repaired . | . . . . . Time . | . . . . . Parts Recycled . | . . . . . Recycled Matter . | . . . . . Retrieved Matter . | . . . . . Retrieved Components . | . . . . . Parts Scanalyzed . | . . . . . Part Schematics Acquired . | . . . . . Parts Damaged . | . . . . . Bothacking | -11 -10 -10 -10 -9 ------------ Run | Scr Mat Min Exi Min Used RIF Installer . | . . . . . Robots Hacked . | . . . . . Non-combat . | . . . . . Combat . | . . . . . Robot Hacks Applied . | . . . . . Relay Couplers Released . | . . . . . Fabnet Peak Effective % . | . . . . . Robots Rewired . | . . . . . Allies Hacked . | . . . . . Hacks Repelled . | . . . . . Allies | -11 -10 -10 -10 -9 -------- Run | Scr Mat Min Exi Min Total Allies 2 | . . 2 . . Largest Group 2 | . . 2 2 . Highest-Rated Group 42 | . . 42 42 . Highest-Rated Ally 31 | . . 31 31 . Total Orders . | . . . . . Ally Attacks 7 | . . 7 . . Total Damage 43 | . . 43 . . Kills 2 | . . 2 . . Allies Corrupted . | . . . . . Allies Melted . | . . . . . Intel | -11 -10 -10 -10 -9 ------- Run | Scr Mat Min Exi Min Robot Analysis Total . | . . . . . Derelict Logs Recovered . | . . . . . Drone Launches . | . . . . . Drone Recoveries . | . . . . . Exploration | -11 -10 -10 -10 -9 ------------- Run | Scr Mat Min Exi Min Turns Passed 1436 | . 449 385 504 98 Spaces Moved 996 | 1 275 261 415 44 Core . | . . . . . Treads . | . . . . . Legs 970 | 1 249 261 415 44 Wheels 26 | . 26 . . . Hover . | . . . . . Flight . | . . . . . Fastest Speed 115 | 120 115 120 120 120 Average Speed 119 | 120 119 120 120 120 Slowest Speed 190 | 120 190 120 120 120 Overloaded Moves . | . . . . . Propulsion Burnouts . | . . . . . Robots Hopped . | . . . . . Cave-ins Triggered . | . . . . . Exploration Rate (%) 41 | 2 43 52 88 24 Regions Visited 4 Branch Regions 3 Pre-discovered Areas 1 | . . . . 1 Known Exits Taken . | . . . . . Unknown Exits Taken 4 | 1 1 1 1 . Scrap Searched . | . . . . . Spaces Dug 2 | . 2 . . . Terrain Destroyed 22 | . 2 . . 20 Melee . | . . . . . Projectile 2 | . 2 . . . AOE 20 | . . . . 20 Terrain Rammed . | . . . . . Walls Destroyed . | . . . . . Machines Disabled . | . . . . . Actions | -11 -10 -10 -10 -9 --------- Run | Scr Mat Min Exi Min Total 1144 | . 349 310 421 64 Wait 42 | . 4 30 7 1 Move 992 | . 274 260 414 44 Hop . | . . . . . Pick Up 14 | . 13 1 . . Fast Attach 8 | . 7 1 . . Attach 2 | . 1 . . 1 Detach 3 | . 3 . . . Swap 10 | . 7 1 . 2 Drop 17 | . 15 2 . . Fire 56 | . 25 15 . 16 Melee . | . . . . . Ram . | . . . . . Kick . | . . . . . Crush . | . . . . . Escape Stasis . | . . . . . Rewire . | . . . . . Trap . | . . . . . Miscellaneous . | . . . . . Route ------- -11/Scrapyard -10/Materials -10/Mines (discovered 2 exits: [*Mat] / *Exi) -10/Exiles -9/Mines History --------- Turn | Location | Event 1 | -11/Scrapyard | Discovered new exit (range 0) 1 | -11/Scrapyard | Entered Materials 300 | -10/Materials | Build established: Mutant 408 | -10/Materials | Discovered new exit (range 10) 450 | -10/Materials | Entered Mines 466 | -10/Mines | Discovered new exit (range 6) 711 | -10/Mines | Deemed a non-threat by the Exiles lab entrance 711 | -10/Mines | Discovered new exit (range 5) 835 | -10/Mines | Entered Exiles 835 | -10/Exiles | Found Exiles lab abandoned 835 | -10/Exiles | Accompanied by 2 allies 865 | -10/Exiles | Led the pair of lost Derelicts to a safe place 1325 | -10/Exiles | Discovered new exit (range 11) 1339 | -10/Exiles | Entered Mines 1340 | -9/Mines | Assembled infested the area 1364 | -9/Mines | Learned location of Storage (-8) 1411 | -9/Mines | Destroyed 10 combat bots 1412 | -9/Mines | Core integrity fell below 50% 1424 | -9/Mines | Core integrity fell below 20% 1437 | -9/Mines | Destroyed by D-53 Grenadier with Mini Grenade Launcher Last Messages --------------- 01374_ as-27954 destroyed. 01374_ Switching to secondary target: as-29792. 01379_ Lgt. Armor Plating destroyed. 01379_ as-02554 destroyed. 01381_ The unstable cave ceiling collapses. 01382_ Critical hit (Burn: +80). 01390_ as-30160 destroyed. 01392_ Acquired 17 matter. 01396_ Acquired 16 matter. 01397_ Acquired 13 matter. 01402_ K-01 Serf collects debris. 01405_ Imp. Ion Engine destroyed. 01406_ K-01 Serf collects debris. 01411_ Autogun destroyed. 01411_ Imp. Aluminum Leg destroyed. 01411_ as-29792 destroyed. 01413_ Autogun destroyed. 01415_ K-01 Serf collects debris. 01419_ The unstable cave ceiling collapses. 01419_ K-01 Serf collects debris. Map ----- +----------------------------------------------------+ | ???????????????????????????????????????????? | | ???????????????????????????????????????????? | | ???????????????????????????????????????????? | | ???????????????????????????????????????????? | | ????????????# ?????????????????????????????? | | ???????????# ???????????????????????????? | | ??????????? ???????????????????????????? | | ??????????? ???????????????????????????? | | ??????????? ?????????????????????????? | | ??????????# ?????????????????????????? | | ?????????# ?????????????????????????? | | ????????? ???????????##?????????????? | | ????????? ??????????? ??????????????? | | ?####???? #???????????? ??????????????? | | ?? ##### #???????????? ??????????????? | | ?# # #???????????? ??????????????? | | # ##??????????? #??????????????? | | ?# % ####??????? ##?????????????? | | # # # ##?????? ####??????????? | | # ##????? ##?????????? | | # #????? ??????????? | | #????? ???????????? | | # ##???## #????????????? | | # #???## #?????????????? | | ## ###?# #?????????????? | | # # ### @ #??????????????? | | #### # ## ##??????????????? | | ???## ## dd #???????????????? | | ????## ## ### ##???????????????? | | ?????## # #?####????????????????? | | ??????# #?????????????????????? | | ??????## # # #????????????????????? | | ???????######## #???????????????????? | | ??????????????# #???????????????????? | | ??????????????## #??????????????????? | | ???????????????### ?????????????????? | | ?????????????????## ???????????????? | | ??????????????????##### ??????????????? | | ???????????????????????#######?????????????? | | ???????????????????????????????????????????? | | ???????????????????????????????????????????? | | | | | | | | | | | | | | | | | | | +----------------------------------------------------+ Best States ------------- Heat Dissipation 39 Energy Generation 12 Energy Capacity 265 Matter Stores 300 Matter Capacity 300 Sight Range 16 Terrain Scan Density 10 Armor Coverage 150 Evasion (%) 55 Item Schematics ----------------- None Robot Schematics ------------------ None Fabricated ------------ Nothing Alien Tech Used ----------------- None Achievements -------------- None Challenges ------------ None Game ------ Seed SpectralThrowingStick Manual? 0 Play Time 00:14:13 Cumulative 4.8 hours Start 2021.11.23 @ 08:22:21 End 2021.11.23 @ 08:36:51 Sessions 1 Manual Loads 0 Difficulty Rogue Special Mode None Game No. 9 Rogue 9 Adventurer 0 Explorer 0 Win Type - Total 0 Types 0/0/0/0/0/0/0/0/0 Lore% 9 Gallery% 12 Achievement% 22 Wizard Run 0 Options --------- ASCII 0 Keyboard 1 Movement Numpad Keybinds 0 Fullscreen 1 Font 24/Terminus Map View 76x50 Tactical HUD 1 Map Filters NONE Filters NONE Steam 1 RUN: c440fa95-fad4-4f51-aa9d-617b88d9b7e5